fUSD/lending_fUSD_20240422
["ID","MTS","AMOUNT","RATE_DAILY","PERIOD"]
[323206714,1713810646491,-150.0,0.00012683,2]
[323206715,1713810646500,-150.0,0.00012686,2]
[323206716,1713810646509,-150.0,0.00012686,2]
[323206717,1713810646518,-150.0,0.00012687,2]
[323206718,1713810646527,-162.97631994,0.00012688,2]
[323206719,1713810646536,-150.0,0.00012689,2]
[323206720,1713810646546,-150.0,0.00012689,2]
[323206721,1713810646556,-150.0,0.00012689,2]
[323206722,1713810646566,-150.0,0.00012695,2]
[323206723,1713810646575,-150.0,0.00012697,2]
[323206724,1713810646585,-1500.0,0.00012704,2]
[323206725,1713810646594,-150.0,0.00012704,2]
[323206726,1713810646604,-300.0,0.00012705,2]
[323206727,1713810646616,-1500.0,0.00012705,2]
[323206728,1713810646625,-150.0,0.00012708,2]
[323206729,1713810646634,-150.0,0.00012708,2]
[323206730,1713810646644,-150.0,0.00012708,2]
[323206731,1713810646653,-150.0,0.00012709,2]
[323206732,1713810646667,-150.0,0.0001271,2]
[323206733,1713810646676,-150.0,0.00012711,2]
[323206734,1713810646686,-150.0,0.00012712,2]
[323206735,1713810646695,-150.0,0.00012712,2]
[323206736,1713810646704,-150.0,0.00012713,2]
[323206737,1713810646714,-150.0,0.00012719,2]
[323206738,1713810646723,-150.0,0.00012721,2]
[323206739,1713810646732,-150.0,0.00012722,2]
[323206740,1713810646744,-150.0,0.00012724,2]
[323206741,1713810646754,-150.0,0.00012725,2]
[323206742,1713810646763,-2216.80985504,0.00012727,2]
[323206743,1713810646773,-150.0,0.00012729,2]
[323206744,1713810646782,-150.0,0.00012729,2]
[323206745,1713810646792,-150.0,0.00012734,2]
[323206746,1713810646803,-150.0,0.00012736,2]
[323206747,1713810646812,-150.0,0.00012737,2]
[323206748,1713810646822,-150.0,0.00012737,2]
[323206749,1713810646832,-22768.06539469,0.00012737,2]
[323206750,1713810646842,-150.0,0.0001274,2]
[323206751,1713810646852,-150.0,0.00012742,2]
[323206752,1713810646863,-1500.0,0.00012743,2]
[323206753,1713810646872,-150.0,0.00012743,2]
[323206754,1713810646881,-150.0,0.00012747,2]
[323206755,1713810646891,-150.0,0.00012747,2]
[323206756,1713810646901,-251.52363247,0.00012749,2]
[323206757,1713810646910,-2544.75303,0.0001275,2]
[323206758,1713810646921,-150.0,0.00012754,2]
[323206759,1713810646931,-150.0,0.00012756,2]
[323206760,1713810646940,-1500.0,0.00012758,2]
[323206761,1713810646949,-150.0,0.00012759,2]
[323206762,1713810646960,-1228.16900988,0.0001276,2]
[323206763,1713810763677,280.6,9.862e-05,2]
[323206765,1713811162023,1836.1,0.00011086,3]
[323206766,1713811179433,3040.14,0.00011091,2]
[323206767,1713811216941,250.0,0.00011118,2]
[323206768,1713811227263,266.57,9.2e-05,2]
[323206769,1713811233223,166.38,0.00011198,2]
[323206770,1713811302653,500.0,0.00011051,3]
[323206771,1713811360578,589.55363227,0.000112,2]
[323206772,1713811567230,159.22,0.00011074,2]
[323206773,1713811654163,2026.42,0.00011097,2]
[323206774,1713811669231,800.0,0.00011098,2]
[323206775,1713811732871,14815.4,0.00011067,2]
[323206776,1713811761904,253.24,9.138e-05,2]
[323206783,1713811832104,-155.0,0.00011227,2]
[323206784,1713811832113,-346.46,0.00011227,2]
[323206785,1713811832142,-621.08281859,0.00011227,2]
[323206786,1713811832151,-200.28280363,0.00011228,2]
[323206787,1713811832160,-213.36937778,0.00011228,2]
[323206788,1713811832210,-824.81260088,0.00011228,2]
[323206789,1713811832222,-493.64174045,0.00011228,2]
[323206790,1713811832235,-267.03964422,0.00011228,2]
[323206791,1713811832269,-20969.20203136,0.00011228,2]
[323206792,1713811832278,-2215.32753899,0.00011228,2]
[323206793,1713811832288,-1351.45342977,0.00011229,2]
[323206794,1713811832298,-261.11392606,0.00011229,8]
[323206795,1713811832307,-3776.34143535,0.00011229,2]
[323206796,1713811832317,-9179.22619712,0.00011229,7]
[323206797,1713811832326,-11922.03808236,0.00011238,2]
[323206798,1713811832335,-166.38,0.00011271,2]
[323206799,1713811832344,-250.0,0.00011299,2]
[323206800,1713811832354,-166.38,0.00011344,2]
[323206801,1713811832363,-253.24,0.00011402,2]
[323206802,1713811832372,-166.38,0.00011417,2]
[323206803,1713811832381,-2201.79,0.00011417,2]
[323206804,1713811832392,-6670.68,0.00011464,2]
[323206805,1713811832402,-282.27,0.00011475,2]
[323206806,1713811832412,-324.07,0.0001148,2]
[323206807,1713811832422,-324.07,0.00011483,2]
[323206808,1713811832432,-324.07,0.00011486,2]
[323206809,1713811832441,-324.07,0.00011489,2]
[323206810,1713811832450,-166.38,0.0001149,2]
[323206811,1713811832460,-324.07,0.00011492,2]
[323206812,1713811832470,-739.33,0.00011492,2]
[323206813,1713811832479,-200.0,0.00011494,2]
[323206814,1713811832489,-324.07,0.00011495,2]
[323206815,1713811832498,-324.07,0.00011498,2]
[323206816,1713811832508,-324.07,0.00011501,2]
[323206817,1713811832517,-324.07,0.00011504,2]
[323206818,1713811832527,-324.07,0.00011507,2]
[323206819,1713811832536,-324.07,0.0001151,2]
[323206820,1713811832546,-324.07,0.00011513,2]
[323206821,1713811832556,-324.07,0.00011516,2]
[323206822,1713811832565,-324.07,0.00011519,2]
[323206823,1713811832575,-324.07,0.00011522,2]
[323206824,1713811832584,-324.07,0.00011525,2]
[323206825,1713811832594,-324.07,0.00011528,2]
[323206826,1713811832604,-324.07,0.00011531,2]
[323206827,1713811832614,-324.07,0.00011534,2]
[323206828,1713811832623,-324.07,0.00011537,2]
[323206829,1713811832633,-166.38,0.00011562,2]
[323206830,1713811832644,-166.38,0.00011635,2]
[323206831,1713811832653,-343.61,0.00011662,2]
[323206832,1713811832663,-166.38,0.00011708,2]
[323206833,1713811832672,-166.38,0.00011781,2]
[323206834,1713811832681,-20201.31145002,0.00011796,2]
[323206835,1713811832691,-2750.0,0.00012,2]
[323206836,1713811832701,-162.7,0.00012055,2]
[323206837,1713811832710,-521.95,0.00012055,2]
[323206838,1713811832720,-150.0,0.00012055,2]
[323206839,1713811832729,-927.36,0.00012055,2]
[323206840,1713811832738,-521.95,0.00012055,2]
[323206841,1713811832748,-150.0,0.00012055,2]
[323206842,1713811832757,-521.95,0.00012055,2]
[323206843,1713811832767,-521.95,0.00012055,2]
[323206844,1713811832777,-1054.72,0.00012055,2]
[323206845,1713811832787,-160.46,0.00012268,2]
[323206846,1713811832796,-800.0,0.00012486,2]
[323206847,1713811832806,-3728.411,0.0001253,2]
[323206848,1713811832815,-150.0,0.00012551,2]
[323206849,1713811832824,-150.0,0.00012562,2]
[323206850,1713811832834,-1000.0,0.00012566,2]
[323206851,1713811832844,-2500.0,0.00012566,2]
[323206852,1713811832854,-181.09604278,0.00012567,2]
[323206853,1713811832863,-168.86780768,0.00012567,2]
[323206854,1713811832873,-150.0,0.00012587,2]
[323206855,1713811832882,-150.0,0.00012594,2]
[323206856,1713811832894,-2208.8948925,0.000126,2]
[323206857,1713811832904,-150.0,0.000126,2]
[323206858,1713811832913,-1000.0,0.000126,2]
[323206859,1713811832923,-1500.0,0.00012606,2]
[323206860,1713811832931,-150.0,0.00012606,2]
[323206861,1713811832941,-150.0,0.00012607,2]
[323206862,1713811832952,-150.0,0.00012609,2]
[323206863,1713811832962,-150.0,0.00012609,2]
[323206864,1713811832972,-150.0,0.00012611,2]
[323206865,1713811832981,-150.0,0.00012614,2]
[323206866,1713811832991,-150.0,0.00012617,2]
[323206867,1713811833001,-150.0,0.00012619,2]
[323206868,1713811833010,-151.69663093,0.0001262,2]
[323206869,1713811833020,-150.0,0.00012629,2]
[323206870,1713811833034,-150.0,0.00012632,2]
[323206871,1713811833044,-150.0,0.00012633,2]
[323206872,1713811833054,-1500.0,0.00012634,2]
[323206873,1713811833064,-168.86780766,0.00012639,2]
[323206874,1713811833074,-3956.71784268,0.0001264,2]
[323206875,1713811833084,-150.0,0.0001264,2]
[323206876,1713811833093,-150.0,0.00012646,2]
[323206877,1713811833103,-150.0,0.00012648,2]
[323206878,1713811833113,-150.0,0.00012651,2]
[323206879,1713811833123,-300.0,0.00012653,2]
[323206880,1713811833133,-207.46306076,0.00012656,2]
[323206881,1713811833145,-150.0,0.00012657,2]
[323206882,1713811833154,-1500.0,0.00012662,2]
[323206883,1713811833163,-157.16455494,0.00012664,2]
[323206884,1713811833174,-968.16465511,0.00012664,2]
[323206885,1713811833185,-1386.46,0.00012664,2]
[323206886,1713811833195,-143566.40119961,0.00012664,2]
[323206887,1713811833204,-86387.01018315,0.00012664,2]
[323206888,1713811833217,-21584.95682334,0.00012664,2]
[323206889,1713811833229,-419.67248778,0.00012664,2]
[323206890,1713811833241,-56473.40204097,0.00012664,2]
[323206891,1713811833251,-261.37099247,0.00012664,2]
[323206892,1713811833261,-28257.53611262,0.00012666,2]
[323207013,1713811838864,-14614.47180344,0.00012666,2]
[323207015,1713811838875,-9890.78103409,0.00012666,2]
[323207020,1713811838908,-73499.12448144,0.00012666,2]
[323207022,1713811838920,-2224.82386269,0.00012666,2]
[323207026,1713811838946,-3251.55806868,0.00012666,2]
[323207029,1713811838972,-2218.158108,0.00012666,2]
[323207032,1713811838985,-184667.0,0.00012666,2]
[323207044,1713811841184,-85604.73515221,0.00012666,2]
[323207045,1713811841196,-632.26700353,0.00012666,2]
[323207046,1713811841244,-350.2695717,0.00012666,2]
[323207047,1713811841256,-33239.49600001,0.00012666,2]
[323207048,1713811841297,-528.29213941,0.00012666,2]
[323207049,1713811841353,-1215.54623407,0.00012666,2]
[323207050,1713811841611,-1149.42897912,0.00012666,2]
[323207051,1713811841622,-3466.13989654,0.00012666,2]
[323207059,1713811842933,-629.13693538,0.00012666,2]
[323207060,1713811843105,-1394.50400889,0.00012666,2]
[323207061,1713811843149,-52044.62733895,0.00012666,2]
[323207062,1713811843177,-2919.36431648,0.00012666,2]
[323207063,1713811843189,-7485.0,0.00012666,2]
[323207064,1713811843232,-3817.7030832,0.00012666,2]
[323207086,1713811846607,-456.85409812,0.00012666,2]
[323207087,1713811846711,-12337.35648721,0.00012666,2]
[323207097,1713812041174,189.44,0.0001116,2]
[323207104,1713812153578,1416.22,0.00011155,2]
[323207105,1713812181475,520.0,0.00011092,2]
[323207106,1713812196834,250.0,0.00011091,2]
[323207107,1713812246074,244.27,9.169e-05,2]
[323207108,1713812534021,181.58,0.00010738,2]
[323207109,1713812617997,1994.63391406,0.00011201,2]
[323207110,1713812623863,2359.79119523,0.00011201,2]
[323207111,1713812625820,194.37853639,0.00011201,2]
[323207112,1713812629787,155.0,0.00011201,2]
[323207113,1713812633157,261.11392606,0.00011201,8]
[323207114,1713812634505,200.28280363,0.00011201,2]
[323207115,1713812643682,22768.06539469,0.00011201,2]
[323207116,1713812648297,408.40214741,0.00011201,2]
[323207117,1713812658571,167.34808462,0.00011201,2]
[323207118,1713812668056,2999.88375729,0.00011201,2]
[323207119,1713812685892,943.81,0.00010876,2]
[323207120,1713812707120,2763.75,0.00011201,2]
[323207121,1713812711847,584.0,0.00010876,2]
[323207122,1713812739115,967.54281859,0.00011201,2]
[323207123,1713812743040,1165.42554931,0.00011201,2]
[323207124,1713812774278,535.93386891,0.00011201,2]
[323207125,1713812774687,22768.06539469,0.00011201,2]
[323207126,1713812852664,363.73256176,0.00011201,2]
[323207127,1713812862540,2999.88375729,0.00011201,2]
[323207128,1713812903771,22768.06539469,0.00011201,2]
[323207129,1713812927962,167.47,0.00011047,2]
[323207130,1713812928042,167.47,0.00011078,2]
[323207131,1713812928158,167.47,0.00011108,2]
[323207132,1713812928621,167.47,0.00011138,2]
[323207133,1713812928727,167.47,0.00011168,2]
[323207134,1713812928841,167.47,0.00011199,2]
[323207138,1713812933799,1165.42554931,0.00011201,2]
[323207148,1713813031862,-615.77052,0.00011202,7]
[323207149,1713813031904,-1509.71825524,0.00011202,7]
[323207154,1713813031957,-7053.73742188,0.00011202,7]
[323207156,1713813031966,-167.47,0.00011229,2]
[323207157,1713813031975,-167.47,0.00011259,2]
[323207158,1713813031984,-167.47,0.0001129,2]
[323207159,1713813031994,-167.47,0.0001132,2]
[323207160,1713813032003,-167.47,0.0001135,2]
[323207161,1713813032012,-167.47,0.00011381,2]
[323207162,1713813032022,-499.99,0.00011407,2]
[323207163,1713813032031,-167.47,0.00011411,2]
[323207164,1713813032040,-244.27,0.00011433,2]
[323207165,1713813032049,-167.47,0.00011441,2]
[323207166,1713813032058,-167.47,0.00011471,2]
[323207167,1713813032067,-167.47,0.00011502,2]
[323207168,1713813032076,-167.47,0.00011532,2]
[323207169,1713813032085,-167.47,0.00011562,2]
[323207170,1713813032094,-167.47,0.00011593,2]
[323207171,1713813032103,-167.47,0.00011623,2]
[323207172,1713813032113,-157.23443646,0.00011677,2]
[323207173,1713813032121,-207.82598978,0.0001168,2]
[323207174,1713813032131,-1165.42554931,0.00011687,2]
[323207175,1713813032140,-1815.74891036,0.00011688,2]
[323207176,1713813032150,-22768.06539469,0.00011692,2]
[323207177,1713813032158,-7460.08873208,0.00011693,2]
[323207178,1713813032168,-837.57148858,0.00011694,2]
[323207179,1713813032176,-685.82571,0.000118,2]
[323207180,1713813032184,-4811.33396887,0.00011869,2]
[323207181,1713813032193,-617.72928317,0.00011933,2]
[323207182,1713813032202,-3321.57516251,0.00011967,2]
[323207183,1713813032211,-160.46,0.00012064,2]
[323207184,1713813032221,-2500.0,0.00012125,2]
[323207185,1713813032230,-584.0,0.00012235,2]
[323207186,1713813032239,-2500.0,0.00012364,2]
[323207187,1713813032248,-256.0905,0.00012364,2]
[323207188,1713813032257,-22274.2145,0.00012364,2]
[323207189,1713813032266,-2069.9342,0.00012364,2]
[323207190,1713813032275,-1000.0,0.00012364,2]
[323207191,1713813032285,-4206.3164,0.00012364,2]
[323207192,1713813032293,-2500.0,0.00012364,2]
[323207193,1713813032302,-181.22918947,0.00012365,2]
[323207194,1713813032312,-168.86780766,0.00012365,2]
[323207196,1713813032321,-161.36015836,0.00012454,2]
[323207197,1713813032330,-155.0,0.00012462,2]
[323207199,1713813032339,-194.10022722,0.00012462,2]
[323207200,1713813032348,-1350.2857484,0.00012462,2]
[323207201,1713813032357,-218.42683294,0.00012462,2]
[323207202,1713813032366,-395.93090518,0.00012462,8]
[323207203,1713813032375,-193.9881427,0.00012462,2]
[323207204,1713813032385,-155.0,0.00012462,2]
[323207205,1713813032395,-267.69334126,0.00012462,2]
[323207206,1713813032405,-222.86841634,0.00012462,2]
[323207207,1713813032415,-897.76814129,0.00012462,2]
[323207208,1713813032427,-363.3434854,0.00012462,2]
[323207209,1713813032437,-287.65498298,0.00012462,2]
[323207210,1713813032447,-223.65370089,0.00012462,2]
[323207211,1713813032457,-1299.18201923,0.00012463,2]
[323207212,1713813032467,-54698.71269434,0.00012464,2]
[323207213,1713813032521,-622.78216,0.00012464,2]
[323207214,1713813032683,-412345.30857321,0.00012464,2]
[323207215,1713813032697,-15067.00001,0.00012464,2]
[323207216,1713813032792,-854.70609405,0.00012464,2]
[323207246,1713813038224,-813.64995,0.00012464,2]
[323207251,1713813038282,-15415.52791573,0.00012464,2]
[323207259,1713813038351,-652.2519,0.00012464,2]
[323207261,1713813038487,-263.79487368,0.00012464,2]
[323207418,1713813039977,-524.16,0.00012,2]
[323207614,1713813043124,-274.88,0.00011615,2]
[323207615,1713813043135,-2778.08,0.00012,2]
[323207616,1713813043146,-161919.35071209,0.00012464,2]
[323207617,1713813043158,-335.99574904,0.00012464,2]
[323207618,1713813043205,-300.52,0.00012464,2]
[323207739,1713813045638,2716.1452,0.00011102,2]
[323207772,1713813046910,-155.0,0.00012364,2]
[323207773,1713813046927,-1788.81415242,0.00012464,2]
[323207774,1713813046943,-1715.7082,0.00012464,2]
[323207775,1713813046959,-660.02,0.00012464,2]
[323207776,1713813046976,-1873.023161,0.00012464,2]
[323207787,1713813048595,-1661.74459098,0.00012464,2]
[323207788,1713813053110,317.34356756,0.00011201,2]
[323207789,1713813059646,183.75,9.292e-05,2]
[323207790,1713813084595,230.02,9.683e-05,2]
[323207791,1713813479119,154.37,0.0001095,2]
[323207792,1713813479421,154.37,0.00010959,2]
[323207793,1713813479625,154.37,0.00010968,2]
[323207794,1713813479818,154.37,0.00010977,2]
[323207795,1713813480534,154.37,0.00010986,2]
[323207796,1713813480808,154.37,0.00010995,2]
[323207797,1713813481092,154.37,0.00011004,2]
[323207799,1713813534603,567.82,0.00010976,2]
[323207800,1713813571115,175.56,0.00010948,2]
[323207801,1713813661675,693.14,0.00011002,2]
[323207802,1713813731428,218.51,9.11e-05,2]
[323207803,1713813759118,350.4,0.00010984,2]
[323207804,1713813874119,153.54,0.00011191,2]
[323207805,1713813950463,707.03,0.00011201,2]
[323207806,1713813951686,614.65,0.00010867,2]
[323207808,1713814221903,461.76,0.00010851,2]
[323207810,1713814232025,-574.32971375,0.00011205,7]
[323207811,1713814232038,-8604.89648337,0.00011205,7]
[323207812,1713814232048,-2355.26431071,0.00011206,2]
[323207813,1713814232059,-453.0,0.00011207,2]
[323207814,1713814232069,-1165.42554931,0.00011207,2]
[323207815,1713814232080,-871.51106769,0.00011207,2]
[323207816,1713814232089,-150.0,0.00011208,2]
[323207817,1713814232100,-1983.65044049,0.00011208,2]
[323207818,1713814232110,-153.54,0.00011223,2]
[323207819,1713814232120,-153.54,0.00011256,2]
[323207820,1713814232133,-153.54,0.00011288,2]
[323207821,1713814232145,-189.44,0.00011299,2]
[323207822,1713814232154,-499.99,0.00011299,2]
[323207823,1713814232165,-1000.0,0.00011299,2]
[323207824,1713814232174,-317.86,0.00011299,2]
[323207825,1713814232183,-1284.99237092,0.000113,2]
[323207826,1713814232256,-1231.98607209,0.000113,2]
[323207827,1713814232270,-608.77266491,0.000113,2]
[323207828,1713814232280,-153.54,0.0001132,2]
[323207829,1713814232290,-153.54,0.00011353,2]
[323207830,1713814232301,-153.54,0.00011385,2]
[323207831,1713814232310,-153.54,0.00011418,2]
[323207832,1713814232320,-153.54,0.0001145,2]
[323207833,1713814232330,-153.54,0.00011482,2]
[323207834,1713814232340,-153.54,0.00011515,2]
[323207835,1713814232350,-649.6,0.00011532,2]
[323207837,1713814232359,-175.72,0.00011547,2]
[323207838,1713814232369,-153.54,0.00011547,2]
[323207839,1713814232381,-153.54,0.00011579,2]
[323207840,1713814232393,-153.54,0.00011612,2]
[323207841,1713814232402,-153.54,0.00011644,2]
[323207842,1713814232411,-153.54,0.00011677,2]
[323207843,1713814232421,-153.54,0.00011709,2]
[323207844,1713814232430,-153.54,0.00011741,2]
[323207845,1713814232442,-153.54,0.00011774,2]
[323207846,1713814232451,-2500.0,0.00011786,2]
[323207847,1713814232461,-1018.33066723,0.00011936,2]
[323207848,1713814232475,-523.28591813,0.00011936,2]
[323207849,1713814232488,-1625.06479127,0.00011936,2]
[323207850,1713814232498,-1689.08520878,0.00012,2]
[323207851,1713814232551,-1060.91479122,0.00012,2]
[323207852,1713814232561,-312.1,0.00012264,2]
[323207853,1713814232571,-10211.40699373,0.00012264,2]
[323207854,1713814232584,-1575.30113172,0.00012264,2]
[323207855,1713814232596,-5314.0001,0.00012264,2]
[323207856,1713814232609,-14043.16087455,0.00012264,2]
[323207857,1713814232618,-1240.5175,0.00012264,2]
[323207858,1713814232632,-9796.8551,0.00012264,2]
[323207859,1713814232641,-2500.0,0.00012264,2]
[323207860,1713814232651,-500.0,0.00012265,2]
[323207861,1713814232661,-181.22918947,0.00012265,2]
[323207862,1713814232671,-3956.9278,0.00012274,2]
[323207863,1713814232680,-1000.0,0.000123,2]
[323207864,1713814232690,-1000.0,0.000123,2]
[323207865,1713814232700,-1000.0,0.000123,2]
[323207866,1713814232710,-1000.0,0.000123,2]
[323207867,1713814232720,-1000.0,0.000123,2]
[323207868,1713814232729,-1300.0,0.000123,2]
[323207869,1713814232742,-4809.44763703,0.000123,2]
[323207870,1713814232753,-1000.0,0.000123,2]
[323207871,1713814232764,-1000.0,0.000123,2]
[323207872,1713814232778,-1000.0,0.000123,2]
[323207873,1713814232789,-94.87187895,0.000123,2]
[323207874,1713814232803,-905.12812105,0.000123,2]
[323207875,1713814232814,-77.08307544,0.000123,2]
[323207876,1713814232849,-666.96756859,0.000123,2]
[323207937,1713814238799,-332.60004763,0.00011204,2]
[323207942,1713814238845,-22435.46534706,0.00011204,2]
[323207944,1713814238854,-256.94935597,0.000123,2]
[323207946,1713814238863,-1003.0,0.000123,2]
[323207948,1713814238872,-175.56,0.00012316,2]
[323207950,1713814238881,-210.0,0.00012329,2]
[323207952,1713814238892,-150.0,0.00012343,2]
[323207954,1713814238901,-331.34444047,0.00012357,2]
[323207957,1713814238913,-19.05555953,0.00012357,2]
[323207959,1713814238922,-505.31252703,0.00012362,2]
[323207961,1713814238931,-1241.30093329,0.00012362,2]
[323207963,1713814238941,-744.90779002,0.00012362,2]
[323207965,1713814238950,-462.68995706,0.00012363,2]
[323207967,1713814238960,-4824.8059,0.00012364,2]
[323207969,1713814238970,-16572.02711717,0.00012364,2]
[323207971,1713814238981,-7717.25742839,0.00012364,2]
[323207975,1713814239007,-64787.29755241,0.00012364,2]
[323207979,1713814239034,-13773.88548943,0.00012364,2]
[323207981,1713814239046,-68022.37577501,0.00012364,2]
[323207996,1713814239176,-542.22711796,0.00012364,2]
[323208007,1713814239272,-1289.66076782,0.00012364,2]
[323208031,1713814240080,-462.90378296,0.00012364,2]
[323208032,1713814240282,-1302.15616219,0.00012364,2]
[323208033,1713814240368,-896.82497611,0.00012364,2]
[323208034,1713814240411,-691.31999944,0.00012364,2]
[323208072,1713814243390,-161.36015837,0.00012354,2]
[323208073,1713814243402,-1374.58984163,0.00012364,2]
[323208074,1713814243413,-975.50000002,0.00012364,2]
[323208075,1713814243449,-453.28542755,0.00012364,2]
[323208084,1713814244158,239.35,9.686e-05,2]
[323208089,1713814246249,-239.35,0.00011949,2]
[323208090,1713814246263,-249.67686996,0.00012364,2]
[323208091,1713814246326,-272.45285571,0.00012364,2]
[323208092,1713814246342,-628.3542,0.00012364,2]
[323208093,1713814246420,-13457.31004487,0.00012364,2]
[323208095,1713814246528,-464.60127401,0.00012364,2]
[323208097,1713814319152,544.0032413,9.891e-05,2]
[323208098,1713814436173,200.0,0.00010696,2]
[323208099,1713814437882,168.07,0.00010696,2]
[323208100,1713814499990,468.52,0.0001069,2]
[323208101,1713814500289,468.52,0.00010693,2]
[323208102,1713814501177,468.52,0.00010695,2]
[323208103,1713814501276,468.52,0.00010698,2]
[323208104,1713814501335,468.52,0.00010701,2]
[323208105,1713814501526,468.52,0.00010704,2]
[323208106,1713814501721,468.52,0.00010707,2]
[323208107,1713814501896,468.52,0.0001071,2]
[323208108,1713814502394,468.52,0.00010712,2]
[323208109,1713814502532,468.52,0.00010715,2]
[323208110,1713814502589,468.52,0.00010718,2]
[323208111,1713814502858,468.52,0.00010721,2]
[323208112,1713814503016,468.52,0.00010724,2]
[323208113,1713814503219,468.52,0.00010726,2]
[323208114,1713814503476,468.52,0.00010729,2]
[323208115,1713814503768,468.52,0.00010732,2]
[323208116,1713814503918,23890.0,0.0001069,2]
[323208117,1713814504052,468.52,0.00010735,2]
[323208118,1713814504283,468.52,0.00010738,2]
[323208119,1713814504548,468.52,0.00010741,2]
[323208120,1713814504920,468.52,0.00010743,2]
[323208121,1713814510556,155.0,0.00010737,2]
[323208122,1713814556209,250.0,0.00010697,2]
[323208123,1713814576779,312.49,0.00010741,2]
[323208124,1713814624279,1165.42554931,0.00011201,2]
[323208125,1713814626984,781.26841583,0.00011201,2]
[323208126,1713814639964,155.0,0.00011201,2]
[323208127,1713814654336,2355.26431071,0.00011201,2]
[323208128,1713814656740,1293.92148157,0.00011201,2]
[323208129,1713814669431,1060.66830362,0.00011201,2]
[323208130,1713814669933,1182.9,0.00010748,2]
[323208131,1713814677296,9179.22619712,0.00011201,7]
[323208132,1713814691240,150.0,0.00010959,2]
[323208133,1713814715535,2555.42,0.00010783,2]
[323208134,1713814750556,1244.4085051,0.00011201,2]
[323208135,1713814759178,1165.42554931,0.00011201,2]
[323208136,1713814766395,241.71,8.848e-05,2]
[323208137,1713814766622,241.71,0.00011112,2]
[323208138,1713814793969,210.24,0.00010709,2]
[323208139,1713814802534,1302.8407569,0.00027121,120]
[323208140,1713814816333,2180.67,0.00010696,2]
[323208141,1713814831488,1162.0,0.00010724,2]
[323208142,1713814883596,153.72,0.00011104,2]
[323208143,1713814883791,153.72,0.00011136,2]
[323208144,1713814883868,153.72,0.00011168,2]
[323208145,1713814883941,153.72,0.000112,2]
[323208146,1713815006563,2018.42587827,0.00027009,120]
[323208147,1713815006587,9979.30628982,0.00027009,120]
[323208148,1713815006612,97696.26522295,0.00027009,120]
[323208149,1713815019798,267.42040667,0.00011201,2]
[323208150,1713815026778,202.31155224,0.00011201,2]
[323208151,1713815041458,1234.79,0.00010712,2]
[323208152,1713815046344,1983.65044049,0.00011201,2]
[323208153,1713815141910,325.24,0.00010741,2]
[323208154,1713815157589,936.0,0.00011201,2]
[323208155,1713815200641,1000.0,0.00011201,2]
[323208156,1713815216605,1703.28,0.00010767,2]
[323208157,1713815262215,2000.0,0.00011201,2]
[323208158,1713815282512,150.0,0.00011201,2]
[323208159,1713815338042,831.8,0.00010779,2]
[323208160,1713815367053,217.53,8.871e-05,2]
[323208161,1713815367302,217.53,0.00011135,2]
[323208184,1713815432333,-342.46857,0.00011202,7]
[323208185,1713815432497,-741.94029657,0.00011202,7]
[323208186,1713815432519,-264.25996,0.00011202,7]
[323208187,1713815432531,-7830.55737055,0.00011202,7]
[323208188,1713815432540,-976.75723739,0.00011202,2]
[323208189,1713815432549,-216.02707233,0.00011209,2]
[323208190,1713815432559,-198.09459067,0.0001121,2]